Cogmind - Beta 16.1 @@@ ROGUE MODE // 2026.04.24 @ 00:30:22 Player: coopco Result: Destroyed by Q5-KRF(R) with Subdweller Laser Performance ------------- Evolutions (0) 0 Regions Visited (3) 600 Robots Destroyed (20) 100 Value Destroyed (428) 428 Prototype IDs (2) 40 Alien Tech Used (0) 0 Bonus (0) 0 TOTAL SCORE: 1168 Bonus ------- None Cogmind --------- Core Integrity 0/250 Matter 290/300 Energy 250/250 System Corruption 0% Temperature Cool (6) Movement Rolling (120) Ox1 Location -10/Subcaves Parts ------- > --- POWER (1) -------- Ion Engine > --- PROPULSION (2) --- Subdweller Monowheel Subdweller Monowheel > --- UTILITY (2) ------ High-capacity Storage Unit Structural Scanner > --- WEAPON (2) ------- Makeshift Axe > --- INVENTORY (20) --- Subdweller Power Source Makeshift Power Source Spiked Treads Makeshift Leg Subdweller Monowheel Subdweller Monowheel Subdweller Monowheel Subdweller Optics Subdweller Optics Beam Cannon Makeshift Shrapnel Gun Grenade Launcher Scrap Shield Fragment (49) Scrap Shield Fragment (45) Scrap Shield Fragment (41) Scrap Shield Fragment (40) Peak State ------------ > --- POWER ------------ Subdweller Power Source > --- PROPULSION ------- Aluminum Leg Carbon-fiber Leg > --- UTILITY ---------- Small Storage Unit Structural Scanner > --- WEAPON ----------- Subdweller Laser Makeshift Axe > --- INVENTORY -------- Ion Engine Light Treads Aluminum Leg High-capacity Storage Unit Beam Cannon Assault Rifle Grenade Launcher Signal Generator [Rating: 15] Favorites ----------- Power Light Ion Engine Engine Light Ion Engine Propulsion Light Treads Treads Light Treads Leg Aluminum Leg Wheel Subdweller Monowheel Utility Small Storage Unit Device Structural Scanner Storage Small Storage Unit Weapon Assault Rifle Energy Gun Medium Laser Ballistic Gun Assault Rifle Slashing Weapon Makeshift Axe Build | -11 -10 -10 -10 ------- Run | Yrd Mat Min Sub Slots Evolved . | . . . . Power . | . . . . Propulsion . | . . . . Utility . | . . . . Weapon . | . . . . Parts Attached 20 | 6 2 2 10 Power 4 | 1 1 . 2 Engine 4 | 1 1 . 2 Core . | . . . . Reactor . | . . . . Propulsion 9 | 2 . 2 5 Treads 3 | 2 . . 1 Leg 3 | . . 2 1 Wheel 3 | . . . 3 Hover . | . . . . Flight . | . . . . Utility 3 | 1 1 . 1 Device 1 | . 1 . . Storage 2 | 1 . . 1 Processor . | . . . . Hackware . | . . . . Protection . | . . . . Artifact . | . . . . Weapon 4 | 2 . . 2 Energy Gun 2 | 1 . . 1 Energy Cannon . | . . . . Ballistic Gun 1 | 1 . . . Ballistic Cannon . | . . . . Launcher . | . . . . Special Weapon . | . . . . Impact Weapon . | . . . . Slashing Weapon 1 | . . . 1 Piercing Weapon . | . . . . Special Melee Weapon . | . . . . Unidentified Prototypes . | . . . . Parts Lost 3 | . 1 . 2 Power 1 | . 1 . . Propulsion 1 | . . . 1 Utility . | . . . . Weapon 1 | . . . 1 Highest Loss Streak 2 | . 1 . 2 To Critical Strikes . | . . . . Average Backups 7 | 3 5 7 8 Power 1 | . . . 1 Propulsion 2 | 1 2 2 2 Utility 1 | . . 1 1 Weapon 2 | 1 1 2 3 Tool/Special . | . . . . Unused Backups 12 | . . 2 10 Power 2 | . . . 2 Propulsion 3 | . . . 3 Utility 3 | . . 1 2 Weapon 4 | . . 1 3 Tool/Special . | . . . . Average Slot Usage (%) 93 | . 87 100 87 Engine 13 | . 13 14 14 Treads 17 | . 28 22 4 Leg 5 | . . 5 9 Wheel 4 | . . . 13 Device 11 | . 3 14 14 Storage 14 | . 14 14 14 Energy Gun 10 | . 14 14 2 Ballistic Gun 10 | . 14 14 1 Slashing Weapon 3 | . . . 12 Peak Build Rating 15 | 6 7 10 15 Average Rating 8 | 3 6 8 12 On Entrance 5 | . 6 7 10 Avg Prop Armor Cover (%) 9 | . . . 9 Naked Turns . | . . . . Heaviest Build 49 | 14 15 13 49 Greatest Support 40 | 40 40 40 40 Greatest Overweight (x) 2 | . . . 2 Average Overweight (x) . | . . . . Largest Inventory Capacity 20 | 8 8 8 20 Average Capacity 9 | 6 8 8 13 Most Carried 17 | 6 6 8 17 Average Carried 8 | 3 5 7 10 Final Capacity 20 | 8 8 8 20 Final Carried 16 | 4 6 8 16 Class Distribution -------------------- 100% | Mutant Dominant Class ---------------- Mutant | -10/Materials Mutant | -10/Mines Mutant | -10/Subcaves Resources | -11 -10 -10 -10 ----------- Run | Yrd Mat Min Sub Matter Collected 518 | 230 117 62 109 Remotely . | . . . . Salvage Created 542 | . 216 44 282 Parts 45 | . 19 5 21 Haulers Intercepted . | . . . . Recyclers Shooed . | . . . . Parts Field Recycled . | . . . . Retrieved Matter . | . . . . Parts Self-Destructed 6 | . . . 6 Prevented . | . . . . Parts Restored . | . . . . Kills | -11 -10 -10 -10 ------- Run | Yrd Mat Min Sub Combat Hostiles Destroyed 23 | . 11 6 6 Melee 6 | . . . 6 Guns 17 | . 11 6 . Classes Destroyed 4 | . 2 1 1 Swarmer 12 | . 9 3 . Grunt 2 | . 2 . . Subdweller 6 | . . . 6 Assembled 3 | . . 3 . Best Kill Streak 4 | . 4 3 1 Combat Bots Only 4 | . 4 3 1 Max Kills in Single Turn 1 | . 1 1 1 Gunslinging . | . . . . Exploded . | . . . . Melee 1 | . . . 1 Uniques/NPCs Destroyed . | . . . . Combat | -11 -10 -10 -10 -------- Run | Yrd Mat Min Sub Hostile Shots Fired 114 | . 55 18 41 Missed 34 | . 20 4 10 Hits 80 | . 35 14 31 Projectile 80 | . 35 14 31 Critical Strikes 1 | . . . 1 Damage Taken 1097 | . 302 157 638 Core 266 | . 28 28 210 Absorbed by Shields . | . . . . Core Remaining (%) 100 | 100 . . . Volleys Fired 41 | . 24 14 3 Largest 2 | . 2 2 2 Hottest 80 | . 70 70 80 Shots Fired 82 | . 48 28 6 Gun 82 | . 48 28 6 Cannon . | . . . . Launcher . | . . . . Special . | . . . . Kinetic 41 | . 24 14 3 Thermal 41 | . 24 14 3 Explosive . | . . . . Electromagnetic . | . . . . Robot Hit Streak 7 | . 4 4 7 Robot Miss Streak 4 | . 3 4 . Penetration Max . | . . . . Secondary Targets 3 | . 2 1 . Max Gunslinging Chain 1 | . 1 1 . Shots Hit Robots 54 | . 21 11 22 Core Hits 24 | . 12 6 6 Critical Kills 1 | . . 1 . Critical Parts Destroyed 1 | . . 1 . Critical Strikes 4 | . 1 2 1 Burn 1 | . 1 . . Destroy 2 | . . 2 . Sever 1 | . . . 1 Melee Attacks 33 | . . . 33 Impact . | . . . . Slashing 33 | . . . 33 Piercing . | . . . . Sneak Attacks . | . . . . Combat Hostiles . | . . . . Follow-up Attacks . | . . . . Damage Inflicted 1095 | . 277 140 678 Guns 515 | . 277 140 98 Cannons . | . . . . Explosions . | . . . . Melee 580 | . . . 580 Ramming . | . . . . Kinetic 253 | . 125 89 39 Thermal 262 | . 152 51 59 Explosive . | . . . . Electromagnetic . | . . . . Impact . | . . . . Slashing 580 | . . . 580 Piercing . | . . . . Highest Corruption . | . . . . Average Corruption . | . . . . Corruption Purged . | . . . . Corruption Blocked . | . . . . Overload Shots . | . . . . Overflow Damage . | . . . . Projectiles . | . . . . Explosions . | . . . . Melee . | . . . . Knockbacks . | . . . . Impact . | . . . . Kinetic . | . . . . Secondary . | . . . . Self-Inflicted Damage . | . . . . Shots . | . . . . Rammed 1 | . . 1 . Targets Rammed 1 | . . 1 . Kicked . | . . . . Crushed . | . . . . Highest Temperature 54 | . 54 54 . Average Temperature 17 | . 15 22 . Received Heat Transfer 138 | . 6 . 132 Siege Activations . | . . . . Martial Activations . | . . . . Shielding Activations . | . . . . Robots Disrupted . | . . . . Combat Hostiles . | . . . . Robots Corrupted . | . . . . Combat Hostiles . | . . . . Parts Fried . | . . . . Impact Corruptions . | . . . . Robots Melted . | . . . . Combat Hostiles . | . . . . Parts Melted 1 | . 1 . . Heat Transferred 741 | . 518 148 75 Parts Sabotaged . | . . . . Parts Stolen . | . . . . Parts Stripped . | . . . . Power Chain Reactions . | . . . . Alert | -11 -10 -10 -10 ------- Run | Yrd Mat Min Sub Maximum Alert Level . | . . . . Low Security (%) 100 | 100 100 100 . Level 1 . | . . . . Level 2 . | . . . . Level 3 . | . . . . Level 4 . | . . . . Level 5 . | . . . . High Security . | . . . . Max Security . | . . . . Peak Influence 166 | . 166 62 . Initial 47 | . . 47 . Average 30 | . 98 7 . Influence Increases 371 | . 301 70 . Destroy 0b10 Robot/C 280 | . 220 60 . Destroy Leader 40 | . 30 10 . Successful Hack 5 | . 5 . . Destroy Structure 1 | . 1 . . Lose Combat Pursuer 45 | . 45 . . Influence Decreases 371 | . 178 193 . Entered New Map 76 | . . 76 . Time Decay 285 | . 168 117 . Lost Part 10 | . 10 . . Squads Dispatched . | . . . . Investigation . | . . . . Extermination . | . . . . Reinforcement . | . . . . Assault . | . . . . Garrison . | . . . . Intercept . | . . . . Searches Triggered . | . . . . Construction Impeded . | . . . . Haulers Reinforced . | . . . . Active Scanning Responses . | . . . . Cargo Convoy Interrupts . | . . . . Stealth | -11 -10 -10 -10 --------- Run | Yrd Mat Min Sub Distress Signals . | . . . . Communications Jammed . | . . . . Distress Signals . | . . . . Times Spotted 49 | . 15 26 8 Peak Tracking Total 19 | . 4 19 3 Tactical Retreats 3 | . 2 1 . Traps | -11 -10 -10 -10 ------- Run | Yrd Mat Min Sub Traps Triggered . | . . . . Indirectly . | . . . . Trap Hack Attempts . | . . . . Triggered . | . . . . Disarmed . | . . . . Reprogrammed . | . . . . Reused . | . . . . Traps Extracted . | . . . . Installed . | . . . . Triggered . | . . . . Machines | -11 -10 -10 -10 ---------- Run | Yrd Mat Min Sub Machines Disabled . | . . . . Max in Single Turn . | . . . . Machines Repaired . | . . . . Machines Dismantled . | . . . . Machines Sabotaged . | . . . . Overloaded Fab Kills . | . . . . Hacking | -11 -10 -10 -10 --------- Run | Yrd Mat Min Sub Machines Accessed 3 | . 3 . . Terminals 3 | . 3 . . Fabricators . | . . . . Repair Stations . | . . . . Recycling Units . | . . . . Scanalyzers . | . . . . Garrison Access . | . . . . Total Hacks 10 | . 10 . . Successful 2 | . 2 . . Failed 8 | . 8 . . Catastrophic . | . . . . Database Lockouts . | . . . . Manual 8 | . 8 . . Terminals 10 | . 10 . . Fabricators . | . . . . Repair Stations . | . . . . Recycling Units . | . . . . Scanalyzers . | . . . . Garrison Access . | . . . . Terminal Hacks 2 | . 2 . . Prototype ID Bank 1 | . 1 . . Registered Components 1 | . 1 . . Fabricator Hacks . | . . . . Repair Station Hacks . | . . . . Recycling Unit Hacks . | . . . . Scanalyzer . | . . . . Garrison Access Hacks . | . . . . Unauthorized Hacks . | . . . . Terminals . | . . . . Fabricators . | . . . . Repair Stations . | . . . . Recycling Units . | . . . . Scanalyzers . | . . . . Garrison Access . | . . . . Data Cores Recovered . | . . . . Used . | . . . . Hacking Detections 3 | . 3 . . Full Trace Events . | . . . . Feedback Events . | . . . . Feedback Blocked . | . . . . Robot Schematics Acquired . | . . . . Robots Built . | . . . . Authchips . | . . . . Time . | . . . . Total Robot Build Rating . | . . . . Part Schematics Acquired . | . . . . Parts Built . | . . . . Authchips . | . . . . Time . | . . . . Total Part Build Rating . | . . . . Part Studies Acquired . | . . . . Parts Repaired . | . . . . Time . | . . . . Parts Recycled . | . . . . Recycled Matter . | . . . . Retrieved Matter . | . . . . Retrieved Components . | . . . . Parts Scanalyzed . | . . . . Part Schematics Acquired . | . . . . Parts Damaged . | . . . . Bothacking | -11 -10 -10 -10 ------------ Run | Yrd Mat Min Sub Used RIF Installer . | . . . . Robots Hacked . | . . . . Non-combat . | . . . . Combat . | . . . . Robot Hacks Applied . | . . . . Relay Couplers Released . | . . . . Fabnet Peak Effective % . | . . . . Robots Rewired . | . . . . Allies Hacked . | . . . . Hacks Repelled . | . . . . Allies | -11 -10 -10 -10 -------- Run | Yrd Mat Min Sub Total Allies 2 | . . 2 . Largest Group 2 | . . 2 . Highest-Rated Group 48 | . . 48 . Highest-Rated Ally 31 | . . 31 . Total Orders . | . . . . Ally Attacks 3 | . . 3 . Total Damage 21 | . . 21 . Kills 1 | . . 1 . Allies Corrupted . | . . . . Allies Melted . | . . . . Intel | -11 -10 -10 -10 ------- Run | Yrd Mat Min Sub Active Infowar (turns) 1840 | . 109 1085 646 Structural 1840 | . 109 1085 646 Robot Analysis Total . | . . . . Derelict Logs Recovered 3 | . . 2 1 Drone Launches . | . . . . Drone Recoveries . | . . . . Exploration | -11 -10 -10 -10 ------------- Run | Yrd Mat Min Sub Turns Passed 2219 | 85 403 1085 646 Spaces Moved 1324 | 47 190 668 419 Core 5 | 5 . . . Treads 781 | 42 190 499 50 Legs 317 | . . 169 148 Wheels 221 | . . . 221 Hover . | . . . . Flight . | . . . . Fastest Speed 50 | 50 160 120 110 Average Speed 143 | 148 160 149 125 Slowest Speed 190 | 160 160 160 190 Overloaded Moves . | . . . . Propulsion Burnouts . | . . . . Robots Hopped . | . . . . Potential Cave-ins . | . . . . Cave-ins Triggered . | . . . . Exploration Rate (%) 44 | 4 40 92 41 Regions Visited 3 Branch Regions 2 Pre-discovered Areas . | . . . . Known Exits Taken . | . . . . Unknown Exits Taken 3 | 1 1 1 . Scrap Searched 5 | . . 2 3 Spaces Dug . | . . . . Terrain Destroyed . | . . . . Melee . | . . . . Projectile . | . . . . AOE . | . . . . Terrain Rammed . | . . . . Walls Destroyed . | . . . . Machines Disabled . | . . . . Actions | -11 -10 -10 -10 --------- Run | Yrd Mat Min Sub Total 1528 | 62 241 723 502 Wait 63 | . 23 31 9 Move 1321 | 46 189 667 419 Hop . | . . . . Pick Up 35 | 10 3 5 17 Fast Attach 2 | . 1 . 1 Attach 8 | 6 1 . 1 Detach . | . . . . Swap 11 | . . 2 9 Drop 13 | . . 3 10 Fire 41 | . 24 14 3 Melee 33 | . . . 33 Ram . | . . . . Kick . | . . . . Crush 1 | . . 1 . Escape Stasis . | . . . . Rewire . | . . . . Trap . | . . . . Miscellaneous . | . . . . Route ------- -11/Scrapyard -10/Materials -10/Mines (discovered 3 exits: [*Mat x2] / [*Sub]) -10/Subcaves History --------- Turn | Location | Event 6 | -11/Scrapyard | Discovered new exit (range 15) 86 | -11/Scrapyard | Entered Materials 315 | -10/Materials | Build established: Mutant 472 | -10/Materials | Discovered new exit (range 7) 489 | -10/Materials | Entered Mines 592 | -10/Mines | Learned Materials garrison access intel 861 | -10/Mines | Discovered new exit (range 11) 876 | -10/Mines | Met a Derelict testing a Signal Generator 881 | -10/Mines | Found Signal Generator 1039 | -10/Mines | Learned Materials interactive machine intel 1124 | -10/Mines | Discovered new exit (range 5) 1183 | -10/Mines | Assembled infested the area 1237 | -10/Mines | Lost 3 allies 1334 | -10/Mines | A weapon hastily lodged in a ceiling crevice suddenly fell to the ground 1366 | -10/Mines | Found a hidden stash of uninstalled traps 1566 | -10/Mines | Discovered new exit (range 6) 1574 | -10/Mines | Entered Subcaves 1592 | -10/Subcaves | Shifting Twisted Machinery released Sub. Power Source 1600 | -10/Subcaves | Shifting Twisted Machinery released Sub. Laser 1662 | -10/Subcaves | Core integrity fell below 50% 1778 | -10/Subcaves | Shifting Twisted Machinery released Sub. Monowheel 1780 | -10/Subcaves | Shifting Twisted Machinery released Spk. Treads 1862 | -10/Subcaves | Learned location of 1 exit from Materials 1964 | -10/Subcaves | Shifting Twisted Machinery released Sub. Monowheel 1994 | -10/Subcaves | Core integrity fell below 20% 2037 | -10/Subcaves | Shifting Twisted Machinery released Sub. Monowheel 2204 | -10/Subcaves | Visited 4L-MR0's lab 2220 | -10/Subcaves | Destroyed by Q5-KRF(R) with Subdweller Laser Last Messages --------------- 02008_ Searching scrap... 02008_ Found Mak. Thermal Plating. 02008_ Found 41 Matter. 02009_ Sub. Monowheel shoots sparks and powers down. 02015_ Searching scrap... 02015_ Found Battle Rifle. 02015_ Found 34 Matter. 02016_ Acquired 10 matter. 02018_ Searching scrap... 02018_ Found Sub. Optics. 02018_ Found 52 Matter. Sub. Monowheel falls loose from the Twisted Machinery. 02046_ Acquired Sub. Monowheel. 02072_ Sub. Power Source shoots sparks and powers down. 02074_ Dropped Broken Sub. Power Source. 02212_ 9J-G5I(R) Sub. Power Source severed. 02214_ 9J-G5I(R) destroyed. Map ----- +----------------------------------------------------+ | | | | | | | | | | | | | | | | | | | | | | | | | | | | | | | | | | | | | | | | | ?????????????????????????????????????????????????? | | ????????????????????#######??????????????????????? | | ???????????????????#################?????????????? | | ???????????????????### <###########?????????????? | | ???????????????????## < <##"" /"!##?????????????? | | ???????????????????## << @# ####?????????????? | | ???????????????????##<< <%RR "X"""#??????????????? | | ???????????????????## <&#"""""""#??????????????? | | ???????????????????## << ##########??????????????? | | ???????????????????##<< ##########??????????????? | | ???????????????????##< <<"#######????????????????? | | ???????????????????###< # ##????????????????? | | ???????????????????### ###????????????????? | | ???????????????????#### ## #######???????????? | | ????####???????????########" "#########?????????? | | ???#####???????###### ### " ## #####????????? | | ?##### ???????###### ###????????? | | ?#### ???????## # # ### ##????????? | | ?## ??????## ##????????? | | ?# ####?### # # ######????????? | | ???## ######## #### ########????????? | | ???### #### #### #####????????????? | | ????## ### ### ### ###??????????????? | | ????### ### # #### ##???????????????? | | ?????### ## ### ##???????????????? | | ??????### ### ## # ???????????????? | | ???????### ## #### ???????????????? | | ???????#### ####### ?????????????? | | ????????#### ## # ## ?????????????? | | ???????##### ## ###### ?????????????? | +----------------------------------------------------+ Best States ------------- Heat Dissipation 25 Energy Generation 15 Energy Capacity 250 Matter Stores 300 Matter Capacity 300 Sight Range 16 Terrain Scan Density 10 Evasion (%) 55 Recoil Reduction 2 Item Schematics ----------------- None Robot Schematics ------------------ None Fabricated ------------ Nothing Repaired ---------- Nothing Studied --------- None Alien Tech Used ----------------- None Achievements -------------- None Challenges ------------ None Game ------ Seed ScrapoidGrapheneMultirail Manual? 0 Play Time 00:17:26 Cumulative 16.8 hours Start 2026.04.24 @ 00:13:14 End 2026.04.24 @ 00:30:22 Sessions 1 Manual Loads 0 Difficulty Rogue Special Mode None Game No. 23 Rogue 23 Adventurer 0 Explorer 0 Win Type - Total 0 Types 0/0/0/0/0/0/0/0/0/0 Lore% 12 Gallery% 24 Achievement% 22 Wizard Run 0 Options --------- Layout 1 ASCII 0 Keyboard 0 Movement Mouse Keybinds 0 Fullscreen 2 Font 24/Smallcaps Map View 50x35 Zoom Use 0% Tactical HUD 1 Map Filters NONE Filters NONE Steam 1 RUN: 6606f785-290a-406a-93cf-ce3cefe67795